[Event "Titled Tuesday Blitz February 14 Late 2023"]
[White "Mekhitarian, Krikor Sevag"]
[Black "Paravyan, David"]
[WhiteFideId "2107660"]
[BlackFideId "4194985"]
[WhiteElo "2537"]
[BlackElo "2601"]
[Result "0-1"]
[Round "03"]
[TimeControl "180+2"]
[Date "2023.02.14"]
[WhiteClock "0:00:11"]
[BlackClock "0:00:40"]

1. Nf3 {[%clk 0:03:00]}  Nf6 {[%clk 0:02:59]} 2. c4 {[%clk 0:03:00]}  c5 {[%clk 0:03:00]} 3. Nc3 {[%clk 0:03:00]}  Nc6 {[%clk 0:03:00]} 4. g3 {[%clk 0:02:57]}  d5 {[%clk 0:03:00]} 5. cxd5 {[%clk 0:02:55]}  Nxd5 {[%clk 0:03:01]} 6. Bg2 {[%clk 0:02:52]}  Nxc3 {[%clk 0:03:00]} 7. bxc3 {[%clk 0:02:50]}  e5 {[%clk 0:02:57]} 8. O-O {[%clk 0:02:47]}  Be7 {[%clk 0:02:58]} 9. d3 {[%clk 0:02:44]}  O-O {[%clk 0:02:56]} 10. Nd2 {[%clk 0:02:42]}  Be6 {[%clk 0:02:57]} 11. Rb1 {[%clk 0:02:41]}  Qd7 {[%clk 0:02:56]} 12. Qc2 {[%clk 0:02:27]}  Rab8 {[%clk 0:02:55]} 13. a4 {[%clk 0:02:26]}  Rfc8 {[%clk 0:02:52]} 14. Nc4 {[%clk 0:02:20]}  b6 {[%clk 0:02:50]} 15. Bxc6 {[%clk 0:01:51]}  Qxc6 {[%clk 0:02:51]} 16. Nxe5 {[%clk 0:01:52]}  Qd5 {[%clk 0:02:47]} 17. Nc4 {[%clk 0:01:37]}  Bh3 {[%clk 0:02:44]} 18. Ne3 {[%clk 0:01:27]}  Qc6 {[%clk 0:02:38]} 19. Rd1 {[%clk 0:01:23]}  Bg5 {[%clk 0:02:26]} 20. f3 {[%clk 0:01:17]}  Re8 {[%clk 0:02:10]} 21. Ng2 {[%clk 0:01:15]}  Bxc1 {[%clk 0:02:03]} 22. Rdxc1 {[%clk 0:01:12]}  Bxg2 {[%clk 0:01:59]} 23. Kxg2 {[%clk 0:01:12]}  Re3 {[%clk 0:02:00]} 24. c4 {[%clk 0:01:04]}  Rbe8 {[%clk 0:01:59]} 25. Re1 {[%clk 0:01:04]}  h5 {[%clk 0:01:59]} 26. a5 {[%clk 0:00:58]}  h4 {[%clk 0:01:59]} 27. axb6 {[%clk 0:00:58]}  axb6 {[%clk 0:02:00]} 28. Qb2 {[%clk 0:00:50]}  Qg6 {[%clk 0:01:49]} 29. Kf2 {[%clk 0:00:46]}  Qe6 {[%clk 0:01:45]} 30. g4 {[%clk 0:00:41]}  Qd6 {[%clk 0:01:44]} 31. Kg2 {[%clk 0:00:38]}  Qf4 {[%clk 0:01:38]} 32. Qc2 {[%clk 0:00:28]}  R8e6 {[%clk 0:01:37]} 33. Ra1 {[%clk 0:00:25]}  h3+ {[%clk 0:01:33]} 34. Kg1 {[%clk 0:00:20]}  f5 {[%clk 0:01:20]} 35. Ra8+ {[%clk 0:00:14]}  Kh7 {[%clk 0:01:20]} 36. d4 {[%clk 0:00:14]}  Rg6 {[%clk 0:01:07]} 37. Kh1 {[%clk 0:00:11]}  Qxf3+ {[%clk 0:00:40]} 0-1


[Site "https://www.chess.com"]

[Event "Titled Tuesday Blitz February 14 Late 2023"]
[White "Bluebaum, Matthias"]
[Black "Christiansen, Johan-Sebastian"]
[WhiteFideId "24651516"]
[BlackFideId "1512668"]
[WhiteElo "2669"]
[BlackElo "2579"]
[Result "1-0"]
[Round "03"]
[TimeControl "180+2"]
[Date "2023.02.14"]
[WhiteClock "0:00:55"]
[BlackClock "0:00:01"]

1. d4 {[%clk 0:03:00]}  Nf6 {[%clk 0:02:56]} 2. c4 {[%clk 0:03:01]}  c5 {[%clk 0:02:55]} 3. d5 {[%clk 0:03:01]}  b5 {[%clk 0:02:56]} 4. cxb5 {[%clk 0:03:02]}  a6 {[%clk 0:02:55]} 5. bxa6 {[%clk 0:03:03]}  g6 {[%clk 0:02:56]} 6. Nc3 {[%clk 0:03:03]}  Bxa6 {[%clk 0:02:56]} 7. e4 {[%clk 0:03:04]}  Bxf1 {[%clk 0:02:56]} 8. Kxf1 {[%clk 0:03:04]}  d6 {[%clk 0:02:56]} 9. g3 {[%clk 0:03:05]}  Bg7 {[%clk 0:02:56]} 10. Kg2 {[%clk 0:03:06]}  Nbd7 {[%clk 0:02:56]} 11. Nf3 {[%clk 0:03:06]}  O-O {[%clk 0:02:56]} 12. a4 {[%clk 0:03:07]}  Ra6 {[%clk 0:02:57]} 13. Qc2 {[%clk 0:03:05]}  Qa8 {[%clk 0:02:55]} 14. Re1 {[%clk 0:03:05]}  Rc8 {[%clk 0:02:49]} 15. b3 {[%clk 0:02:59]}  Qb7 {[%clk 0:02:47]} 16. Rb1 {[%clk 0:02:46]}  e6 {[%clk 0:02:40]} 17. dxe6 {[%clk 0:02:36]}  fxe6 {[%clk 0:02:41]} 18. Nb5 {[%clk 0:02:36]}  d5 {[%clk 0:02:33]} 19. exd5 {[%clk 0:02:35]}  exd5 {[%clk 0:02:32]} 20. Bf4 {[%clk 0:02:35]}  Ne4 {[%clk 0:02:20]} 21. Ng5 {[%clk 0:02:00]}  Nxg5 {[%clk 0:02:10]} 22. Bxg5 {[%clk 0:02:01]}  Ne5 {[%clk 0:01:51]} 23. f4 {[%clk 0:01:44]}  d4+ {[%clk 0:01:12]} 24. Qe4 {[%clk 0:01:43]}  Qxe4+ {[%clk 0:01:12]} 25. Rxe4 {[%clk 0:01:44]}  Nf7 {[%clk 0:01:13]} 26. Rc1 {[%clk 0:01:35]}  c4 {[%clk 0:00:48]} 27. Rxc4 {[%clk 0:01:28]}  Rxc4 {[%clk 0:00:47]} 28. Re8+ {[%clk 0:01:29]}  Bf8 {[%clk 0:00:47]} 29. bxc4 {[%clk 0:01:29]}  Nxg5 {[%clk 0:00:45]} 30. fxg5 {[%clk 0:01:30]}  Kf7 {[%clk 0:00:35]} 31. Rc8 {[%clk 0:01:26]}  Rxa4 {[%clk 0:00:26]} 32. Nxd4 {[%clk 0:01:26]}  Ra2+ {[%clk 0:00:25]} 33. Kh3 {[%clk 0:01:25]}  Bd6 {[%clk 0:00:19]} 34. Nb5 {[%clk 0:01:23]}  Be5 {[%clk 0:00:18]} 35. c5 {[%clk 0:01:23]}  Ra5 {[%clk 0:00:15]} 36. Nd6+ {[%clk 0:01:05]}  Bxd6 {[%clk 0:00:15]} 37. cxd6 {[%clk 0:01:05]}  Ke6 {[%clk 0:00:16]} 38. Rc7 {[%clk 0:00:58]}  Rxg5 {[%clk 0:00:16]} 39. Rxh7 {[%clk 0:00:58]}  Kxd6 {[%clk 0:00:15]} 40. Kh4 {[%clk 0:00:56]}  Re5 {[%clk 0:00:09]} 41. Rh6 {[%clk 0:00:56]}  Re6 {[%clk 0:00:03]} 42. Kg5 {[%clk 0:00:55]}  Re2 {[%clk 0:00:02]} 43. Rxg6+ {[%clk 0:00:56]}  Ke7 {[%clk 0:00:02]} 44. h4 {[%clk 0:00:56]}  Kf7 {[%clk 0:00:01]} 45. Ra6 {[%clk 0:00:55]} 1-0


[Site "https://www.chess.com"]

[Event "Titled Tuesday Blitz February 14 Late 2023"]
[White "Tsaruk, Maksim"]
[Black "Fedoseev, Vladimir"]
[WhiteFideId "13511173"]
[BlackFideId "24130737"]
[WhiteElo "2373"]
[BlackElo "2680"]
[Result "0-1"]
[Round "03"]
[TimeControl "180+2"]
[Date "2023.02.14"]
[WhiteClock "0:00:02"]
[BlackClock "0:02:11"]

1. e4 {[%clk 0:03:00]}  c6 {[%clk 0:02:59]} 2. Nf3 {[%clk 0:03:01]}  d5 {[%clk 0:02:59]} 3. Nc3 {[%clk 0:03:02]}  Bg4 {[%clk 0:02:57]} 4. h3 {[%clk 0:03:02]}  Bxf3 {[%clk 0:02:55]} 5. Qxf3 {[%clk 0:03:02]}  e6 {[%clk 0:02:52]} 6. Be2 {[%clk 0:03:01]}  g6 {[%clk 0:02:52]} 7. d4 {[%clk 0:02:43]}  Bg7 {[%clk 0:02:52]} 8. Be3 {[%clk 0:02:43]}  Ne7 {[%clk 0:02:49]} 9. O-O-O {[%clk 0:02:35]}  Qa5 {[%clk 0:02:47]} 10. Kb1 {[%clk 0:02:31]}  Nd7 {[%clk 0:02:46]} 11. g4 {[%clk 0:02:23]}  b5 {[%clk 0:02:38]} 12. Bd3 {[%clk 0:02:11]}  b4 {[%clk 0:02:33]} 13. Ne2 {[%clk 0:02:10]}  dxe4 {[%clk 0:02:30]} 14. Bxe4 {[%clk 0:01:48]}  Nd5 {[%clk 0:02:31]} 15. h4 {[%clk 0:01:44]}  h5 {[%clk 0:02:16]} 16. gxh5 {[%clk 0:01:41]}  Rxh5 {[%clk 0:02:15]} 17. Ng3 {[%clk 0:01:35]}  Nc3+ {[%clk 0:02:12]} 18. bxc3 {[%clk 0:01:35]}  bxc3 {[%clk 0:02:12]} 19. Ka1 {[%clk 0:00:05]}  Rb8 {[%clk 0:02:11]} 20. Nxh5 {[%clk 0:00:06]}  Rb2 {[%clk 0:02:11]} 21. Nxg7+ {[%clk 0:00:06]}  Kd8 {[%clk 0:02:11]} 22. Nxe6+ {[%clk 0:00:02]}  Kc8 {[%clk 0:02:11]} 0-1


[Site "https://www.chess.com"]

[Event "Titled Tuesday Blitz February 14 Late 2023"]
[White "Erdogdu, Mert"]
[Black "Deac, Bogdan-Daniel"]
[WhiteFideId "6301495"]
[BlackFideId "1226380"]
[WhiteElo "2413"]
[BlackElo "2700"]
[Result "0-1"]
[Round "03"]
[TimeControl "180+2"]
[Date "2023.02.14"]
[WhiteClock "0:00:35"]
[BlackClock "0:00:06"]

1. e4 {[%clk 0:03:00]}  c5 {[%clk 0:02:58]} 2. Nf3 {[%clk 0:03:01]}  Nc6 {[%clk 0:02:58]} 3. d4 {[%clk 0:03:01]}  cxd4 {[%clk 0:02:58]} 4. Nxd4 {[%clk 0:03:02]}  Qb6 {[%clk 0:02:59]} 5. Nb3 {[%clk 0:03:02]}  Nf6 {[%clk 0:02:59]} 6. Nc3 {[%clk 0:03:02]}  e6 {[%clk 0:03:00]} 7. Bd3 {[%clk 0:03:03]}  a6 {[%clk 0:02:58]} 8. Be3 {[%clk 0:03:02]}  Qc7 {[%clk 0:02:58]} 9. f4 {[%clk 0:03:03]}  d6 {[%clk 0:02:58]} 10. Qf3 {[%clk 0:03:03]}  b5 {[%clk 0:02:56]} 11. O-O-O {[%clk 0:03:03]}  Bb7 {[%clk 0:02:55]} 12. g4 {[%clk 0:03:01]}  Be7 {[%clk 0:02:50]} 13. g5 {[%clk 0:03:00]}  Nd7 {[%clk 0:02:50]} 14. Kb1 {[%clk 0:03:00]}  Na5 {[%clk 0:02:28]} 15. Qh3 {[%clk 0:02:53]}  Nc4 {[%clk 0:02:21]} 16. Bc1 {[%clk 0:02:53]}  Ndb6 {[%clk 0:01:59]} 17. Nd4 {[%clk 0:02:38]}  b4 {[%clk 0:01:47]} 18. Nce2 {[%clk 0:02:36]}  g6 {[%clk 0:01:47]} 19. Rhf1 {[%clk 0:02:30]}  Bc8 {[%clk 0:00:35]} 20. f5 {[%clk 0:02:19]}  e5 {[%clk 0:00:34]} 21. Nb3 {[%clk 0:02:12]}  Bd7 {[%clk 0:00:29]} 22. Qf3 {[%clk 0:02:08]}  d5 {[%clk 0:00:14]} 23. fxg6 {[%clk 0:01:54]}  fxg6 {[%clk 0:00:14]} 24. Qf7+ {[%clk 0:01:47]}  Kd8 {[%clk 0:00:14]} 25. exd5 {[%clk 0:01:47]}  a5 {[%clk 0:00:15]} 26. Qg7 {[%clk 0:01:38]}  Re8 {[%clk 0:00:14]} 27. Qxh7 {[%clk 0:01:32]}  a4 {[%clk 0:00:13]} 28. Nd2 {[%clk 0:01:32]}  b3 {[%clk 0:00:12]} 29. cxb3 {[%clk 0:01:23]}  axb3 {[%clk 0:00:08]} 30. Nxb3 {[%clk 0:01:20]}  Qa7 {[%clk 0:00:07]} 31. Nc3 {[%clk 0:01:17]}  Bb4 {[%clk 0:00:07]} 32. Rf2 {[%clk 0:00:42]}  Bxc3 {[%clk 0:00:05]} 33. bxc3 {[%clk 0:00:42]}  Nxd5 {[%clk 0:00:05]} 34. Rc2 {[%clk 0:00:41]}  Nxc3+ {[%clk 0:00:05]} 35. Rxc3 {[%clk 0:00:35]}  Qxa2# {[%clk 0:00:06]} 0-1


[Site "https://www.chess.com"]

[Event "Titled Tuesday Blitz February 14 Late 2023"]
[White "Lenderman, Aleksandr"]
[Black "Fernandez Guillen, Ernesto J."]
[WhiteFideId "2021285"]
[BlackFideId "3512428"]
[WhiteElo "2572"]
[BlackElo "2477"]
[Result "0-1"]
[Round "03"]
[TimeControl "180+2"]
[Date "2023.02.14"]
[WhiteClock "0:00:16"]
[BlackClock "0:00:20"]

1. Nf3 {[%clk 0:03:00]}  Nf6 {[%clk 0:02:55]} 2. c4 {[%clk 0:03:00]}  g6 {[%clk 0:02:53]} 3. Nc3 {[%clk 0:03:00]}  Bg7 {[%clk 0:02:53]} 4. e4 {[%clk 0:02:59]}  d6 {[%clk 0:02:54]} 5. d4 {[%clk 0:03:00]}  O-O {[%clk 0:02:55]} 6. Be2 {[%clk 0:03:00]}  e5 {[%clk 0:02:56]} 7. O-O {[%clk 0:03:00]}  Nc6 {[%clk 0:02:56]} 8. Be3 {[%clk 0:03:01]}  h6 {[%clk 0:02:54]} 9. d5 {[%clk 0:03:00]}  Ne7 {[%clk 0:02:54]} 10. Nd2 {[%clk 0:03:00]}  Ne8 {[%clk 0:02:54]} 11. c5 {[%clk 0:03:00]}  f5 {[%clk 0:02:54]} 12. f3 {[%clk 0:03:00]}  f4 {[%clk 0:02:54]} 13. Bf2 {[%clk 0:03:01]}  Rf7 {[%clk 0:02:55]} 14. Nc4 {[%clk 0:03:00]}  Bf8 {[%clk 0:02:55]} 15. Rc1 {[%clk 0:02:59]}  g5 {[%clk 0:02:54]} 16. cxd6 {[%clk 0:02:57]}  cxd6 {[%clk 0:02:54]} 17. Nb5 {[%clk 0:02:57]}  b6 {[%clk 0:02:51]} 18. Qa4 {[%clk 0:02:09]}  Bd7 {[%clk 0:02:37]} 19. Qb3 {[%clk 0:02:08]}  Ng6 {[%clk 0:02:34]} 20. a4 {[%clk 0:01:26]}  h5 {[%clk 0:02:31]} 21. a5 {[%clk 0:01:27]}  bxa5 {[%clk 0:02:12]} 22. Nxa7 {[%clk 0:01:27]}  g4 {[%clk 0:02:10]} 23. Nc6 {[%clk 0:01:27]}  Qg5 {[%clk 0:02:10]} 24. Nb6 {[%clk 0:01:26]}  g3 {[%clk 0:02:04]} 25. Be1 {[%clk 0:01:18]}  Qh4 {[%clk 0:01:59]} 26. hxg3 {[%clk 0:00:56]}  fxg3 {[%clk 0:01:51]} 27. Bxg3 {[%clk 0:00:56]}  Qxg3 {[%clk 0:01:52]} 28. Rf2 {[%clk 0:00:50]}  Nf4 {[%clk 0:01:48]} 29. Kf1 {[%clk 0:00:51]}  Qh2 {[%clk 0:01:14]} 30. Ke1 {[%clk 0:00:49]}  Qg1+ {[%clk 0:01:13]} 31. Bf1 {[%clk 0:00:48]}  Ra6 {[%clk 0:00:52]} 32. Nxd7 {[%clk 0:00:39]}  Rxd7 {[%clk 0:00:53]} 33. Nb8 {[%clk 0:00:39]}  Raa7 {[%clk 0:00:40]} 34. Nxd7 {[%clk 0:00:37]}  Rxd7 {[%clk 0:00:41]} 35. Rc8 {[%clk 0:00:36]}  Nf6 {[%clk 0:00:36]} 36. Qb8 {[%clk 0:00:34]}  Rf7 {[%clk 0:00:25]} 37. Qxd6 {[%clk 0:00:28]}  Nd3+ {[%clk 0:00:20]} 38. Kd2 {[%clk 0:00:24]}  Nxf2 {[%clk 0:00:20]} 39. Bc4 {[%clk 0:00:16]}  N2xe4+ {[%clk 0:00:20]} 0-1


[Site "https://www.chess.com"]

[Event "Titled Tuesday Blitz February 14 Late 2023"]
[White "Perske, Thore"]
[Black "Terry, Renato"]
[WhiteFideId "12902195"]
[BlackFideId "3803457"]
[WhiteElo "2448"]
[BlackElo "2520"]
[Result "0-1"]
[Round "03"]
[TimeControl "180+2"]
[Date "2023.02.14"]
[WhiteClock "0:00:03"]
[BlackClock "0:00:29"]

1. e4 {[%clk 0:03:00]}  e6 {[%clk 0:02:59]} 2. d4 {[%clk 0:03:00]}  d5 {[%clk 0:02:59]} 3. Nd2 {[%clk 0:03:01]}  Be7 {[%clk 0:02:59]} 4. Bd3 {[%clk 0:03:01]}  c5 {[%clk 0:02:59]} 5. dxc5 {[%clk 0:03:01]}  Nf6 {[%clk 0:02:59]} 6. Qe2 {[%clk 0:03:02]}  O-O {[%clk 0:02:58]} 7. Ngf3 {[%clk 0:03:02]}  a5 {[%clk 0:02:59]} 8. c4 {[%clk 0:03:02]}  Na6 {[%clk 0:02:56]} 9. e5 {[%clk 0:02:54]}  Nd7 {[%clk 0:02:55]} 10. h4 {[%clk 0:02:34]}  h6 {[%clk 0:02:52]} 11. h5 {[%clk 0:02:27]}  Ndxc5 {[%clk 0:02:47]} 12. Bb1 {[%clk 0:02:23]}  Nb4 {[%clk 0:02:31]} 13. a3 {[%clk 0:02:03]}  Nc6 {[%clk 0:02:31]} 14. Rh3 {[%clk 0:01:55]}  Kh8 {[%clk 0:02:10]} 15. Rg3 {[%clk 0:01:52]}  f5 {[%clk 0:01:50]} 16. cxd5 {[%clk 0:01:18]}  exd5 {[%clk 0:01:43]} 17. Rg6 {[%clk 0:01:04]}  Bd7 {[%clk 0:01:36]} 18. Rg3 {[%clk 0:00:25]}  Ne4 {[%clk 0:01:34]} 19. Rh3 {[%clk 0:00:22]}  Rc8 {[%clk 0:01:25]} 20. Bd3 {[%clk 0:00:20]}  a4 {[%clk 0:01:20]} 21. Kf1 {[%clk 0:00:20]}  Qc7 {[%clk 0:01:14]} 22. Nh4 {[%clk 0:00:11]}  Bxh4 {[%clk 0:01:11]} 23. Rxh4 {[%clk 0:00:12]}  Nxe5 {[%clk 0:01:11]} 24. Nf3 {[%clk 0:00:11]}  Ng4 {[%clk 0:00:55]} 25. Be3 {[%clk 0:00:10]}  Nxe3+ {[%clk 0:00:45]} 26. Qxe3 {[%clk 0:00:10]}  Rfe8 {[%clk 0:00:35]} 27. Qd4 {[%clk 0:00:11]}  Qc5 {[%clk 0:00:35]} 28. Qxc5 {[%clk 0:00:11]}  Rxc5 {[%clk 0:00:36]} 29. Rd1 {[%clk 0:00:11]}  Bb5 {[%clk 0:00:36]} 30. Nd4 {[%clk 0:00:09]}  Bxd3+ {[%clk 0:00:33]} 31. Rxd3 {[%clk 0:00:10]}  Rc1+ {[%clk 0:00:33]} 32. Ke2 {[%clk 0:00:11]}  Rb1 {[%clk 0:00:31]} 33. Re3 {[%clk 0:00:03]}  Rxb2+ {[%clk 0:00:30]} 34. Ke1 {[%clk 0:00:03]}  Rc8 {[%clk 0:00:29]} 35. Kd1 {[%clk 0:00:03]}  Rd2+ {[%clk 0:00:29]} 0-1


[Site "https://www.chess.com"]

[Event "Titled Tuesday Blitz February 14 Late 2023"]
[White "Goltsev, Dmitry"]
[Black "Sanal, Vahap"]
[WhiteFideId "24176710"]
[BlackFideId "6300545"]
[WhiteElo "2269"]
[BlackElo "2600"]
[Result "1-0"]
[Round "03"]
[TimeControl "180+2"]
[Date "2023.02.14"]
[WhiteClock "0:00:03"]
[BlackClock "0:00:01"]

1. e4 {[%clk 0:02:56]}  c5 {[%clk 0:02:58]} 2. Nf3 {[%clk 0:02:55]}  e6 {[%clk 0:02:58]} 3. d4 {[%clk 0:02:55]}  cxd4 {[%clk 0:02:59]} 4. Nxd4 {[%clk 0:02:56]}  a6 {[%clk 0:02:59]} 5. Nc3 {[%clk 0:02:55]}  b5 {[%clk 0:02:56]} 6. a3 {[%clk 0:02:55]}  Bb7 {[%clk 0:02:56]} 7. Be3 {[%clk 0:02:55]}  Nf6 {[%clk 0:02:51]} 8. f3 {[%clk 0:02:55]}  d5 {[%clk 0:02:49]} 9. exd5 {[%clk 0:02:54]}  Nxd5 {[%clk 0:02:49]} 10. Nxd5 {[%clk 0:02:54]}  Bxd5 {[%clk 0:02:46]} 11. Be2 {[%clk 0:02:53]}  Bd6 {[%clk 0:02:37]} 12. Qd2 {[%clk 0:02:51]}  O-O {[%clk 0:02:33]} 13. O-O {[%clk 0:02:47]}  Nd7 {[%clk 0:02:32]} 14. f4 {[%clk 0:02:39]}  Nf6 {[%clk 0:02:27]} 15. Bf3 {[%clk 0:02:39]}  Rc8 {[%clk 0:02:23]} 16. Rfe1 {[%clk 0:02:36]}  Qc7 {[%clk 0:02:18]} 17. c3 {[%clk 0:02:34]}  Rfd8 {[%clk 0:02:18]} 18. Rad1 {[%clk 0:02:32]}  Bxf3 {[%clk 0:02:18]} 19. Nxf3 {[%clk 0:02:33]}  Nd5 {[%clk 0:02:11]} 20. g3 {[%clk 0:02:31]}  Nxe3 {[%clk 0:02:08]} 21. Qxe3 {[%clk 0:02:32]}  Bc5 {[%clk 0:02:08]} 22. Nd4 {[%clk 0:02:32]}  Qb6 {[%clk 0:02:07]} 23. Kg2 {[%clk 0:02:30]}  Rd5 {[%clk 0:02:04]} 24. Rd2 {[%clk 0:02:27]}  Bxd4 {[%clk 0:01:57]} 25. cxd4 {[%clk 0:02:25]}  h5 {[%clk 0:01:54]} 26. Red1 {[%clk 0:02:18]}  a5 {[%clk 0:01:51]} 27. h3 {[%clk 0:02:17]}  a4 {[%clk 0:01:51]} 28. g4 {[%clk 0:02:15]}  Rcd8 {[%clk 0:01:50]} 29. Kg3 {[%clk 0:02:11]}  Qd6 {[%clk 0:01:50]} 30. Rc2 {[%clk 0:02:04]}  Qb8 {[%clk 0:01:24]} 31. Rdc1 {[%clk 0:01:57]}  Qb6 {[%clk 0:01:11]} 32. Rd1 {[%clk 0:01:46]}  g6 {[%clk 0:00:59]} 33. Rc5 {[%clk 0:01:36]}  Kg7 {[%clk 0:00:49]} 34. Qc3 {[%clk 0:01:24]}  Qd6 {[%clk 0:00:43]} 35. Re1 {[%clk 0:01:15]}  Kg8 {[%clk 0:00:39]} 36. Rxd5 {[%clk 0:01:14]}  Qxd5 {[%clk 0:00:39]} 37. Re5 {[%clk 0:01:15]}  Qh1 {[%clk 0:00:33]} 38. Rxb5 {[%clk 0:01:08]}  Qg1+ {[%clk 0:00:32]} 39. Kh4 {[%clk 0:01:07]}  hxg4 {[%clk 0:00:26]} 40. hxg4 {[%clk 0:01:04]}  Qh1+ {[%clk 0:00:18]} 41. Kg5 {[%clk 0:00:54]}  Kh7 {[%clk 0:00:15]} 42. Kf6 {[%clk 0:00:47]}  Qh6 {[%clk 0:00:15]} 43. Rb7 {[%clk 0:00:23]}  Qxf4+ {[%clk 0:00:13]} 44. Ke7 {[%clk 0:00:21]}  Qd6+ {[%clk 0:00:12]} 45. Kf6 {[%clk 0:00:20]}  Qf4+ {[%clk 0:00:13]} 46. Ke7 {[%clk 0:00:20]}  Rxd4 {[%clk 0:00:08]} 47. Ke8 {[%clk 0:00:15]}  Kg8 {[%clk 0:00:06]} 48. Qc8 {[%clk 0:00:12]}  Rc4 {[%clk 0:00:06]} 49. Qd8 {[%clk 0:00:09]}  Rd4 {[%clk 0:00:05]} 50. Qc8 {[%clk 0:00:07]}  Qf6 {[%clk 0:00:03]} 51. g5 {[%clk 0:00:04]}  Qf3 {[%clk 0:00:02]} 52. Ke7+ {[%clk 0:00:03]}  Kh7 {[%clk 0:00:02]} 53. Rb8 {[%clk 0:00:03]}  Rd7+ {[%clk 0:00:01]} 54. Qxd7 {[%clk 0:00:03]}  Kg7 {[%clk 0:00:01]} 55. Qc8 {[%clk 0:00:03]} 1-0


[Site "https://www.chess.com"]

[Event "Titled Tuesday Blitz February 14 Late 2023"]
[White "Msellek, Ilyass"]
[Black "Zhigalko, Sergei"]
[WhiteFideId "675938"]
[BlackFideId "13502956"]
[WhiteElo "2420"]
[BlackElo "2572"]
[Result "1-0"]
[Round "03"]
[TimeControl "180+2"]
[Date "2023.02.14"]
[WhiteClock "0:00:50"]
[BlackClock "0:00:02"]

1. d4 {[%clk 0:02:55]}  Nf6 {[%clk 0:02:59]} 2. Nf3 {[%clk 0:02:56]}  e6 {[%clk 0:02:59]} 3. Bg5 {[%clk 0:02:57]}  h6 {[%clk 0:02:59]} 4. Bh4 {[%clk 0:02:57]}  b6 {[%clk 0:02:59]} 5. e3 {[%clk 0:02:57]}  Bb7 {[%clk 0:02:59]} 6. c3 {[%clk 0:02:58]}  Be7 {[%clk 0:03:00]} 7. Nbd2 {[%clk 0:02:58]}  d6 {[%clk 0:03:00]} 8. Bd3 {[%clk 0:02:59]}  Nbd7 {[%clk 0:03:01]} 9. O-O {[%clk 0:02:59]}  O-O {[%clk 0:03:01]} 10. h3 {[%clk 0:03:00]}  Nh5 {[%clk 0:03:02]} 11. Bxe7 {[%clk 0:03:00]}  Qxe7 {[%clk 0:03:03]} 12. a4 {[%clk 0:03:00]}  a6 {[%clk 0:03:00]} 13. b4 {[%clk 0:02:59]}  e5 {[%clk 0:02:47]} 14. dxe5 {[%clk 0:02:55]}  dxe5 {[%clk 0:02:46]} 15. Be4 {[%clk 0:02:51]}  c6 {[%clk 0:02:34]} 16. Bf5 {[%clk 0:02:45]}  Rad8 {[%clk 0:02:32]} 17. Nc4 {[%clk 0:02:36]}  Ndf6 {[%clk 0:02:17]} 18. Qc2 {[%clk 0:02:30]}  e4 {[%clk 0:02:16]} 19. Nd4 {[%clk 0:02:24]}  c5 {[%clk 0:02:01]} 20. bxc5 {[%clk 0:02:18]}  Qxc5 {[%clk 0:01:56]} 21. g4 {[%clk 0:01:34]}  Qxc4 {[%clk 0:01:46]} 22. gxh5 {[%clk 0:01:34]}  Bc8 {[%clk 0:01:33]} 23. Bxc8 {[%clk 0:01:31]}  Qxc8 {[%clk 0:01:24]} 24. Kh2 {[%clk 0:01:28]}  Rd5 {[%clk 0:01:25]} 25. Rg1 {[%clk 0:01:27]}  Rxh5 {[%clk 0:01:25]} 26. Rg3 {[%clk 0:01:28]}  Rd8 {[%clk 0:00:51]} 27. Rag1 {[%clk 0:01:27]}  Kf8 {[%clk 0:00:36]} 28. Qb3 {[%clk 0:01:25]}  Rd6 {[%clk 0:00:28]} 29. Qb4 {[%clk 0:01:24]}  Ne8 {[%clk 0:00:28]} 30. Kg2 {[%clk 0:01:17]}  Rc5 {[%clk 0:00:20]} 31. Kh2 {[%clk 0:01:16]}  g6 {[%clk 0:00:18]} 32. Rg4 {[%clk 0:01:13]}  Qc7 {[%clk 0:00:13]} 33. Kh1 {[%clk 0:01:12]}  Re5 {[%clk 0:00:11]} 34. Rf4 {[%clk 0:01:06]}  Kg8 {[%clk 0:00:08]} 35. Nf5 {[%clk 0:01:03]}  Rf6 {[%clk 0:00:04]} 36. Nxh6+ {[%clk 0:01:02]}  Kg7 {[%clk 0:00:04]} 37. Rxe4 {[%clk 0:00:47]}  Kxh6 {[%clk 0:00:03]} 38. Qf8+ {[%clk 0:00:47]}  Kh7 {[%clk 0:00:01]} 39. Rh4+ {[%clk 0:00:47]}  Rh5 {[%clk 0:00:01]} 40. Rxh5+ {[%clk 0:00:48]}  gxh5 {[%clk 0:00:01]} 41. Qg8+ {[%clk 0:00:49]}  Kh6 {[%clk 0:00:02]} 42. Qh8# {[%clk 0:00:50]} 1-0


[Site "https://www.chess.com"]